fUSD/lending_fUSD_20250518
["ID","MTS","AMOUNT","RATE_DAILY","PERIOD"]
[361379967,1747533378006,-411.76075864,0.00013899,2]
[361379968,1747533378036,-500.0,0.00013899,2]
[361379969,1747533378065,-500.0,0.00013899,2]
[361379970,1747533378094,-500.0,0.00013899,2]
[361379971,1747533378125,-500.0,0.00013899,2]
[361379972,1747533378155,-500.0,0.00013899,2]
[361379973,1747533378184,-500.0,0.00013899,2]
[361379974,1747533378213,-376.20293385,0.00013899,2]
[361379975,1747533378243,-264.0225482,0.00013899,2]
[361379976,1747533378268,-258.94931543,0.000139,2]
[361379977,1747533378293,-407.61503727,0.000139,2]
[361379978,1747533378317,-190.57135087,0.000139,2]
[361379979,1747533378342,-12850.28764506,0.000139,2]
[361379980,1747533378775,-50000.0,0.000139,2]
[361379981,1747533380974,-50000.0,0.000139,2]
[361379982,1747533398925,150.0,0.00014,5]
[361379983,1747533398960,-342.15856304,0.00013789,2]
[361379984,1747533398990,-49657.84143696,0.000139,2]
[361379985,1747533427312,28443.90695562,0.00011,2]
[361379986,1747533427337,3262.9,0.00011,2]
[361379987,1747533427357,4000.0,0.00011,2]
[361379988,1747533427377,4000.0,0.00011,2]
[361379989,1747533427399,4000.0,0.00011,2]
[361379990,1747533427419,4000.0,0.00011,2]
[361379991,1747533427439,4000.0,0.00011,2]
[361379992,1747533427460,4000.0,0.00011,2]
[361379993,1747533427480,4000.0,0.00011,2]
[361379994,1747533427500,4000.0,0.00011,2]
[361379995,1747533427521,4000.0,0.00011,2]
[361379996,1747533427541,4000.0,0.00011,2]
[361379997,1747533427560,4000.0,0.00011,2]
[361379998,1747533427583,4000.0,0.00011,2]
[361379999,1747533427606,4000.0,0.00011,2]
[361380000,1747533427626,4000.0,0.00011,2]
[361380001,1747533427648,4000.0,0.00011,2]
[361380002,1747533427673,4000.0,0.00011,2]
[361380003,1747533427694,4000.0,0.00011,2]
[361380004,1747533427715,293.19304438,0.00011,2]
[361380005,1747533619651,-210.1536223,0.00013649,2]
[361380006,1747533621550,-215.95880197,0.00013649,2]
[361380008,1747534000005,-323.88757573,0.00011459,2]
[361380009,1747534002132,-165.39,0.00011459,2]
[361380010,1747534003973,-187.876677,0.00011459,2]
[361380011,1747534005940,-90.12574727,0.00011459,2]
[361380013,1747534146911,150.0,0.00013153,7]
[361380019,1747534232219,-179.67,0.00013122,2]
[361380020,1747534232230,-100.71,0.00013131,2]
[361380021,1747534238199,-99.29,0.00013131,2]
[361380022,1747534238210,-203.0,0.00013139,2]
[361380023,1747534238219,-1650.73,0.00013252,2]
[361380024,1747534238228,-250.0,0.00013309,2]
[361380025,1747534238238,-200.0,0.00013327,2]
[361380026,1747534238247,-168.4,0.00013345,2]
[361380027,1747534238257,-573.88757573,0.00013649,2]
[361380028,1747534238266,-152.24,0.00013699,2]
[361380029,1747534238276,-767.28,0.00013723,2]
[361380030,1747534238286,-757.6089234,0.00013865,2]
[361380031,1747534238295,-150.0,0.00013899,2]
[361380032,1747534238305,-1200.0,0.00013899,2]
[361380033,1747534238314,-1883.37132515,0.000139,2]
[361380034,1747534238323,-294.96772182,0.000139,2]
[361380053,1747534238333,-13575.00260741,0.000139,2]
[361380054,1747534238741,-17144.41703745,0.000139,2]
[361380055,1747534238751,-366.85353357,0.000139,2]
[361380056,1747534238761,-210.61596264,0.000139,2]
[361380057,1747534238770,-157.01002682,0.000139,2]
[361380058,1747534238779,-1883.37132515,0.000139,2]
[361380059,1747534238789,-207.4,0.00013921,2]
[361380060,1747534238798,-460.02505356,0.00013928,2]
[361380061,1747534238807,-2323.832,0.00013929,2]
[361380062,1747534238817,-168.321,0.00013929,2]
[361380063,1747534238826,-1085.17,0.00013929,2]
[361380064,1747534238835,-499.99,0.00013929,2]
[361380065,1747534238844,-1541.87,0.00013929,2]
[361380066,1747534238853,-178275.55,0.00013929,2]
[361380067,1747534238862,-487.7,0.00013929,2]
[361380068,1747534238871,-299.99,0.00013929,2]
[361380069,1747534238880,-5282.37,0.00013929,2]
[361380070,1747534238889,-150.99,0.00013929,2]
[361380071,1747534238898,-3660.95,0.00013929,2]
[361380072,1747534238908,-150.99,0.00013929,2]
[361380073,1747534238917,-9999.99,0.00013929,2]
[361380074,1747534238926,-406.36,0.00013929,2]
[361380075,1747534238936,-2087.193482,0.00013929,2]
[361380076,1747534238946,-802.0,0.00013965,2]
[361380077,1747534238955,-920.0,0.00013965,2]
[361380078,1747534238965,-557.218,0.00013965,2]
[361380079,1747534238974,-576.451,0.00013965,2]
[361380080,1747534238984,-1468.481,0.00013965,2]
[361380081,1747534238993,-5960.786,0.00013965,2]
[361380082,1747534239002,-1149.0,0.00013965,2]
[361380083,1747534239012,-159.151,0.00013965,2]
[361380084,1747534239024,-5408.759,0.00013965,2]
[361380085,1747534239034,-4079.777,0.00013965,2]
[361380086,1747534239044,-880.553,0.00013965,2]
[361380087,1747534239055,-159.8783917,0.00013989,2]
[361380088,1747534239064,-159.8783917,0.0001399,2]
[361380089,1747534239074,-159.8783917,0.0001399,2]
[361380090,1747534239083,-159.8783917,0.0001399,2]
[361380091,1747534239095,-159.8783917,0.0001399,2]
[361380092,1747534239105,-151.0,0.00013992,2]
[361380093,1747534239115,-668.65185757,0.00013992,2]
[361380094,1747534239125,-668.65185757,0.00013992,2]
[361380095,1747534239135,-201.23513476,0.00013999,2]
[361380096,1747534239144,-173.47891666,0.00013999,2]
[361380097,1747534239154,-208.89447521,0.00013999,2]
[361380098,1747534239163,-240939.54961621,0.00014,2]
[361380099,1747534239173,-131704.87502239,0.00014,2]
[361380100,1747534240278,-839.0,0.00013965,2]
[361380101,1747534240288,-36514.88542341,0.00014,2]
[361380102,1747534240301,-41376.15005964,0.00014,2]
[361380103,1747534240320,-40470.0,0.00014,2]
[361380104,1747534240442,-9559.10646191,0.00014,2]
[361380105,1747534240601,-1506.68684617,0.00014,2]
[361380127,1747534243811,-38751.14794766,0.00014,2]
[361380129,1747534243823,-523.72319935,0.00014,2]
[361380166,1747534247051,-598.4693843,0.000139,2]
[361380168,1747534247066,-2897.35342523,0.00014,2]
[361380171,1747534247092,-11691.43619083,0.00014,2]
[361380175,1747534247113,-299.6556,0.00014,2]
[361380312,1747534346826,500.0,0.00027397,120]
[361380313,1747534484131,150.0,1e-08,2]
[361380314,1747535015458,-163.47934454,0.000139,2]
[361380315,1747535084960,150.0,1e-08,2]
[361380316,1747535155465,-215.04115685,0.0001289,2]
[361380317,1747535179565,150.0,0.00013032,7]
[361380318,1747535180348,-181.56026312,0.00011272,2]
[361380319,1747535181900,-249.89013907,0.00011272,2]
[361380320,1747535184062,-228.3816951,0.00011272,2]
[361380321,1747535186182,-30.71790271,0.00011272,2]
[361380322,1747535186204,-161.65413394,0.0001208,2]
[361380323,1747535187745,-38.34586606,0.0001208,2]
[361380324,1747535187768,-200.0,0.00012399,2]
[361380325,1747535187794,-87.62622944,0.0001277,2]
[361380326,1747535191033,-112.37377056,0.0001277,2]
[361380337,1747535274017,2842.9039924,0.0001,2]
[361380339,1747535343795,253.0,0.0002739,120]
[361380341,1747535385929,203.0,0.00012264,2]
[361380351,1747535431549,-301.4875886,0.00012889,2]
[361380352,1747535431559,-460.02505356,0.00012889,2]
[361380353,1747535431568,-150.0,0.00012889,2]
[361380354,1747535431577,-300.0,0.00012889,2]
[361380355,1747535431587,-300.0,0.00012889,2]
[361380356,1747535431597,-200.0,0.0001289,2]
[361380357,1747535431607,-36162.58522588,0.0001289,2]
[361380358,1747535431619,-67939.88725298,0.0001289,2]
[361380359,1747535431661,-4320.25000032,0.0001289,2]
[361380360,1747535431672,-697.226639,0.0001289,2]
[361380361,1747535431719,-1712.9407238,0.0001289,2]
[361380362,1747535431731,-504.73606916,0.0001289,2]
[361380751,1747535435857,-172.04,0.0001289,2]
[361380903,1747535437383,-5166.0,0.0001289,2]
[361380905,1747535437397,-6394.15583731,0.0001289,2]
[361380907,1747535437411,-779.54,0.0001289,2]
[361380910,1747535437423,-139218.75261586,0.0001289,2]
[361380912,1747535437433,-218.08,0.00013068,2]
[361380914,1747535437443,-825.36,0.00013224,2]
[361380916,1747535437452,-690.55,0.00013535,2]
[361380918,1747535437462,-152.24,0.00013699,2]
[361380920,1747535437472,-200.0,0.00013699,2]
[361380922,1747535437481,-185.41077842,0.00013699,2]
[361380924,1747535437491,-757.60892341,0.00013781,2]
[361380926,1747535437500,-200.0,0.00013799,2]
[361380928,1747535437509,-252.82947582,0.000139,2]
[361380930,1747535437518,-166.58656829,0.000139,2]
[361380932,1747535437527,-344.48647468,0.000139,2]
[361380934,1747535437536,-210.61596264,0.000139,2]
[361380936,1747535437546,-2400.3206526,0.00013929,2]
[361380938,1747535437555,-500.0,0.00013973,2]
[361380940,1747535437565,-501.28237467,0.00013973,2]
[361380942,1747535437574,-3620.37,0.0001398,2]
[361380944,1747535437584,-207.4,0.0001398,2]
[361380946,1747535437593,-501.9,0.00013989,2]
[361380948,1747535437602,-150.99,0.00013989,2]
[361380950,1747535437611,-299.99,0.00013989,2]
[361380952,1747535437621,-999.99,0.00013989,2]
[361380954,1747535437630,-2355.78,0.00013989,2]
[361380956,1747535437639,-5536.71,0.00013989,2]
[361380958,1747535437650,-150.99,0.00013989,2]
[361380960,1747535437659,-639.51356694,0.00013989,2]
[361380962,1747535437669,-319.7567834,0.00013989,2]
[361380964,1747535437678,-151.8583882,0.00013992,2]
[361380966,1747535437687,-151.0,0.00013992,2]
[361380968,1747535437696,-151.61304655,0.00013992,2]
[361380970,1747535437706,-152.60697211,0.00013992,2]
[361380972,1747535437717,-155.0,0.00013992,2]
[361380974,1747535437726,-668.65185757,0.00013992,2]
[361380976,1747535437736,-668.65185757,0.00013992,2]
[361380978,1747535437746,-200.0,0.00013992,2]
[361380980,1747535437755,-255.0,0.00013997,2]
[361380982,1747535437765,-162.326,0.00013999,2]
[361380984,1747535437776,-1894.318,0.00013999,2]
[361380986,1747535437787,-403078.83166364,0.00014,2]
[361380988,1747535437797,-37887.07526024,0.00014,2]
[361380992,1747535437825,-166.59042292,0.00014,2]
[361380995,1747535437837,-65700.08825703,0.00014,2]
[361380997,1747535437849,-496.59,0.00014,2]
[361380999,1747535437860,-1103.78704119,0.00014,2]
[361381002,1747535437880,-5823.568223,0.00014,2]
[361381193,1747535439585,-2239.99555988,0.00014,2]
[361381198,1747535439597,-333.81892786,0.00014,2]
[361381270,1747535439961,-191.59058532,0.00014,2]
[361381274,1747535439974,-8062.78906241,0.00014,2]
[361381278,1747535439986,-9303.7276782,0.00014,2]
[361381281,1747535439997,-41303.73110074,0.00014,2]
[361381550,1747535442466,-366.85353357,0.000139,2]
[361381552,1747535442476,-2188.69675571,0.00014,2]
[361381708,1747535445420,-9182.66681138,0.00014,2]
[361381709,1747535445522,-80467.31606608,0.00014,2]
[361381710,1747535445733,-7565.56847393,0.00014,2]
[361381711,1747535509747,-156.36040665,0.00012889,2]
[361381714,1747536095160,-171.85,0.00013181,2]
[361381715,1747536095184,-34.3565309,0.00013181,2]
[361381716,1747536096558,-215.6434691,0.00013181,2]
[361381717,1747536096581,-61.35681125,0.00013341,2]
[361381718,1747536097769,-88.64318875,0.00013341,2]
[361381719,1747536097793,-172.8016829,0.00013547,2]
[361381720,1747536099788,-206.2065309,0.00013547,2]
[361381721,1747536102915,-169.41137241,0.00013547,2]
[361381722,1747536105060,-276.09041379,0.00013547,2]
[361381723,1747536373115,-257.39589505,0.00012,2]
[361381724,1747536374735,-318.62013448,0.00012,2]
[361381725,1747536376338,-212.6402944,0.00012,2]
[361381726,1747536378020,-180.13597082,0.00012,2]
[361381727,1747536381219,-214.44856175,0.00012,2]
[361381728,1747536384642,-226.8154,0.00012,2]
[361381729,1747536386400,-200.0,0.00012,2]
[361381730,1747536390140,-825.36,0.00013111,2]
[361381731,1747536390163,-202.57,0.00013142,2]
[361381732,1747536390184,-207.4,0.0001354,2]
[361381733,1747536390206,-168.18,0.00013542,2]
[361381734,1747536390228,-1200.0,0.00013547,2]
[361381735,1747536390250,-300.0,0.00013547,2]
[361381736,1747536390272,-200.0,0.00013548,2]
[361381737,1747536390293,-1509.04111376,0.00013548,2]
[361381738,1747536431746,-258.53432232,0.00011246,2]
[361381740,1747536436102,-231.06477113,0.00011246,2]
[361381741,1747536437637,-210.40090655,0.00011246,2]
[361381742,1747536440451,-91.81,0.00011246,2]
[361381743,1747536551733,150.0,0.00013066,7]
[361381756,1747536631587,-203.0,0.00012673,2]
[361381757,1747536631598,-176.34576808,0.00013001,2]
[361381758,1747536631608,-971.9985665,0.00013065,2]
[361381759,1747536631622,-228.0014335,0.00013065,2]
[361381760,1747536631638,-731.69530994,0.00013066,2]
[361381761,1747536631660,-398.0,0.00013066,2]
[361381762,1747536631683,-1013.90007998,0.00013066,2]
[361381763,1747536631705,-694.01472118,0.00013066,2]
[361381764,1747536631728,-358.919998,0.00013066,2]
[361381765,1747536631749,-2760.94600868,0.00013066,2]
[361381766,1747536631766,-5230.68311874,0.00013066,2]
[361381767,1747536631779,-1247.11792128,0.00013066,2]
[361381768,1747536631790,-34127.4128422,0.00013066,2]
[361381769,1747536631800,-166.26,0.0001323,2]
[361381770,1747536631811,-791.81,0.0001351,2]
[361381771,1747536631825,-207.4,0.0001354,2]
[361381772,1747536631834,-19325.2865901,0.00013548,2]
[361381773,1747536631845,-632.6225661,0.00013548,2]
[361381774,1747536631858,-407.0,0.00013548,2]
[361381775,1747536631871,-2026.04973004,0.00013548,2]
[361381776,1747536631881,-1000.0,0.00013628,2]
[361381777,1747536631891,-200.0,0.00013682,2]
[361381778,1747536631903,-152.24,0.00013699,2]
[361381779,1747536631914,-501.28237467,0.00013873,2]
[361381780,1747536631924,-502.85903909,0.00013873,2]
[361381781,1747536631937,-270.7295,0.00013894,2]
[361381782,1747536631948,-137.61935621,0.00013894,2]
[361381783,1747536631961,-463.30504379,0.00013894,2]
[361381784,1747536631971,-333.6813,0.00013895,2]
[361381785,1747536631982,-8609.01365621,0.00013899,2]
[361381787,1747536631995,-1390.97634379,0.00013899,2]
[361381789,1747536632004,-999.99,0.00013899,2]
[361381791,1747536632014,-150.0,0.00013899,2]
[361381793,1747536632024,-1774.03365638,0.000139,2]
[361381797,1747536632046,-581.74634362,0.000139,2]
[361381799,1747536632055,-150.99,0.000139,2]
[361381800,1747536632064,-406.36,0.000139,2]
[361381802,1747536632074,-499.99,0.000139,2]
[361381804,1747536632083,-1000.0,0.000139,2]
[361381806,1747536632092,-164.324,0.000139,2]
[361381808,1747536632101,-485.90871298,0.000139,2]
[361381809,1747536632112,-1873.17528702,0.000139,2]
[361381811,1747536632121,-299.99,0.000139,2]
[361381814,1747536632129,-38.22945922,0.000139,2]
[361381816,1747536632141,-1046.94054078,0.000139,2]
[361381818,1747536632151,-295.07852607,0.000139,2]
[361381821,1747536632161,-3365.87147393,0.000139,2]
[361381823,1747536632170,-150.99,0.000139,2]
[361381825,1747536632179,-1541.87,0.000139,2]
[361381827,1747536632188,-5536.71,0.000139,2]
[361381829,1747536632197,-252.82947582,0.000139,2]
[361381831,1747536632206,-187.93986194,0.000139,2]
[361381833,1747536632215,-330.16818015,0.000139,2]
[361381835,1747536632225,-206.02987345,0.000139,2]
[361381837,1747536632234,-374.65472461,0.000139,2]
[361381839,1747536632243,-2400.3206526,0.00013929,2]
[361381841,1747536632252,-757.60892341,0.00013949,2]
[361381843,1747536632261,-1113.53697908,0.00013963,2]
[361381845,1747536632271,-500.0,0.00013973,2]
[361381846,1747536632279,-159.8783917,0.00013988,2]
[361381848,1747536632289,-159.8783917,0.0001399,2]
[361381850,1747536632298,-159.8783917,0.0001399,2]
[361381852,1747536632307,-159.8783917,0.0001399,2]
[361381854,1747536632316,-159.8783917,0.0001399,2]
[361381856,1747536632325,-151.0,0.00013991,2]
[361381858,1747536632335,-151.8583882,0.00013991,2]
[361381860,1747536632344,-151.61304655,0.00013991,2]
[361381862,1747536632353,-155.0,0.00013991,2]
[361381864,1747536632362,-200.0,0.00013991,2]
[361381866,1747536632371,-668.65185757,0.00013991,2]
[361381868,1747536632380,-152.60697211,0.00013991,2]
[361381870,1747536632389,-668.65185757,0.00013991,2]
[361381872,1747536632398,-5225.73961798,0.00013995,2]
[361381875,1747536632409,-2766.06842308,0.00013995,2]
[361381877,1747536632420,-2937.37850542,0.00013995,2]
[361381881,1747536632452,-185.41077842,0.00013899,2]
[361381883,1747536632461,-329.87913407,0.00013899,2]
[361381886,1747536632473,-170.12086593,0.00013899,2]
[361381888,1747536632482,-264.81913407,0.00013995,2]
[361381890,1747536632493,-1992.36993761,0.00013995,2]
[361381892,1747536632504,-31194.7925317,0.00013995,2]
[361381894,1747536632515,-590.00001,0.00013995,2]
[361381896,1747536632526,-3075.0,0.00013995,2]
[361382428,1747536637619,-500.0,0.00013899,2]
[361382430,1747536637629,-500.0,0.00013899,2]
[361382432,1747536637638,-500.0,0.00013899,2]
[361382434,1747536637648,-500.0,0.00013899,2]
[361382436,1747536637657,-500.0,0.00013899,2]
[361382438,1747536637666,-500.0,0.00013899,2]
[361382440,1747536637676,-500.0,0.00013899,2]
[361382442,1747536637685,-500.0,0.00013899,2]
[361382444,1747536637695,-500.0,0.00013899,2]
[361382446,1747536637704,-500.0,0.00013899,2]
[361382448,1747536637713,-500.0,0.00013899,2]
[361382450,1747536637722,-59.25206961,0.00013899,2]
[361382452,1747536637733,-440.74793039,0.00013899,2]
[361382454,1747536637742,-500.0,0.00013899,2]
[361382456,1747536637751,-500.0,0.00013899,2]
[361382458,1747536637760,-500.0,0.00013899,2]
[361382460,1747536637769,-500.0,0.00013899,2]
[361382462,1747536637778,-500.0,0.00013899,2]
[361382464,1747536637787,-500.0,0.00013899,2]
[361382466,1747536637796,-500.0,0.00013899,2]
[361382468,1747536637805,-500.0,0.00013899,2]
[361382470,1747536637814,-500.0,0.00013899,2]
[361382472,1747536637828,-500.0,0.00013899,2]
[361382474,1747536637837,-500.0,0.00013899,2]
[361382476,1747536637846,-500.0,0.00013899,2]
[361382478,1747536637855,-500.0,0.00013899,2]
[361382480,1747536637864,-500.0,0.00013899,2]
[361382482,1747536637873,-261.47996252,0.00013899,2]
[361382484,1747536637883,-500.0,0.00013899,2]
[361382486,1747536637892,-500.0,0.00013899,2]
[361382488,1747536637900,-500.0,0.00013899,2]
[361382490,1747536637909,-500.0,0.00013899,2]
[361382492,1747536637918,-348.21181001,0.00013899,2]
[361382494,1747536637930,-151.78818999,0.00013899,2]
[361382496,1747536637938,-316.61577299,0.00013899,2]
[361382498,1747536637949,-183.38422701,0.00013899,2]
[361382500,1747536637958,-81.41577299,0.00013899,2]
[361382502,1747536637970,-418.58422701,0.00013899,2]
[361382504,1747536637979,-500.0,0.00013899,2]
[361382506,1747536637988,-500.0,0.00013899,2]
[361382508,1747536637997,-7276.74736723,0.00013995,2]
[361382512,1747536638009,-4345.32001975,0.00013995,2]
[361382515,1747536638021,-7059.3630798,0.00013995,2]
[361382518,1747536638032,-1586.73634563,0.00013995,2]
[361382651,1747536639247,-30474.93635065,0.00013995,2]
[361382725,1747536639620,-318.29039314,0.00013998,2]
[361382734,1747536639655,-15602.57656052,0.00014,2]
[361382740,1747536639667,-6693.46843226,0.00014,2]
[361382744,1747536639680,-5382.1822785,0.00014,2]
[361382748,1747536639692,-8995.5153792,0.00014,2]
[361382751,1747536639703,-228544.10112332,0.00014,2]
[361382755,1747536639713,-239421.59348343,0.00014,2]
[361382769,1747536639758,-166.35,0.00013985,2]
[361382772,1747536639768,-1015.98465876,0.00014,2]
[361382776,1747536639779,-475.65803177,0.00014,2]
[361382781,1747536639791,-978.1854242,0.00014,2]
[361382785,1747536639803,-2543.49379997,0.00014,2]
[361382789,1747536639814,-1039.67999933,0.00014,2]
[361382793,1747536639829,-1148.85468826,0.00014,2]
[361382797,1747536639840,-1090.80602895,0.00014,2]
[361382852,1747536640129,-166.35,0.00013985,2]
[361382856,1747536640139,-381.65952576,0.00014,2]
[361383132,1747536642816,-166.35,0.0001399,2]
[361383134,1747536642829,-166.35,0.0001399,2]
[361383136,1747536642838,-166.35,0.0001399,2]
[361383138,1747536642847,-166.35,0.0001399,2]
[361383140,1747536642856,-2921.3102229,0.00014,2]
[361383151,1747536642945,-512.50567933,0.00014,2]
[361383449,1747536645645,-301.78555765,0.00014,2]
[361383491,1747536646006,-139813.65164908,0.00014,2]
[361383756,1747537729778,150.0,0.00012921,7]
[361383760,1747537803112,712.62,0.0001102,2]
[361383761,1747537814916,-250.0,0.00013083,2]
[361383762,1747537814938,-150.0,0.00013179,2]
[361383763,1747537814961,-1200.0,0.00013179,2]
[361383764,1747537814990,-5050.0,0.0001318,2]
[361383768,1747537831744,-857.98047029,0.0001318,2]
[361383769,1747537831901,-91224.81952971,0.0001318,2]
[361383770,1747537831911,-163.79,0.00013271,2]
[361383771,1747537831921,-712.62,0.00013284,2]
[361383772,1747537831930,-203.0,0.00013314,2]
[361383773,1747537831940,-412.68,0.00013322,2]
[361383774,1747537831951,-327.86745693,0.000134,2]
[361383775,1747537831964,-1000.0,0.00013443,2]
[361383776,1747537831974,-183.0787107,0.00013579,2]
[361383777,1747537831984,-23900.0,0.0001368,2]
[361383778,1747537831994,-152.24,0.00013699,2]
[361383779,1747537832003,-880.553,0.00013702,2]
[361383780,1747537832012,-840.0,0.00013702,2]
[361383781,1747537832021,-159.151,0.00013702,2]
[361383782,1747537832030,-200.0,0.0001374,2]
[361383783,1747537832040,-200.0,0.00013806,2]
[361383784,1747537832050,-200.0,0.00013849,2]
[361383785,1747537832059,-161.86261384,0.00013873,2]
[361383786,1747537832069,-207.4,0.00013891,2]
[361383787,1747537832079,-201.23513476,0.00013898,2]
[361383788,1747537832090,-173.47891666,0.00013898,2]
[361383789,1747537832102,-208.89447521,0.00013898,2]
[361383790,1747537832111,-23770.39458967,0.00013899,2]
[361383792,1747537832122,-517.992,0.00013899,2]
[361383794,1747537832133,-2917.50301838,0.00013899,2]
[361383848,1747537837742,-448.13726371,0.00013678,2]
[361383849,1747537837781,-158.91332975,0.00013678,2]
[361383850,1747537837791,-607.05059346,0.00013678,2]
[361383851,1747537837801,-607.05059346,0.00013678,2]
[361383852,1747537837810,-146.98548333,0.00013678,2]
[361383853,1747537837887,-460.06511013,0.00013678,2]
[361383854,1747537837896,-607.05059346,0.00013678,2]
[361383855,1747537837906,-607.05059346,0.00013678,2]
[361383856,1747537837915,-607.05059346,0.00013678,2]
[361383857,1747537837926,-607.05059346,0.00013678,2]
[361383858,1747537837935,-607.05059346,0.00013678,2]
[361383859,1747537837945,-607.05059346,0.00013678,2]
[361383860,1747537837954,-607.05059346,0.00013678,2]
[361383861,1747537837965,-607.05059346,0.00013678,2]
[361383862,1747537837975,-607.05059346,0.00013678,2]
[361383863,1747537837984,-607.05059346,0.00013678,2]
[361383864,1747537837995,-95.07939422,0.00013678,2]
[361383865,1747537838007,-511.97119924,0.00013678,2]
[361383866,1747537838017,-607.05059346,0.00013678,2]
[361383867,1747537838026,-607.05059346,0.00013678,2]
[361383869,1747537838035,-607.05059346,0.00013678,2]
[361383871,1747537838044,-607.05059346,0.00013678,2]
[361383873,1747537838053,-607.05059346,0.00013678,2]
[361383874,1747537838064,-298.86604198,0.00013678,2]
[361383875,1747537838075,-308.18455148,0.00013678,2]
[361383876,1747537838086,-607.05059346,0.00013678,2]
[361383877,1747537838096,-607.05059346,0.00013678,2]
[361383878,1747537838105,-607.05059346,0.00013678,2]
[361383879,1747537838115,-607.05059346,0.00013678,2]
[361383880,1747537838126,-607.05059346,0.00013678,2]
[361383881,1747537838135,-607.05059346,0.00013678,2]
[361383882,1747537838144,-607.05059346,0.00013678,2]
[361383884,1747537838153,-607.05059346,0.00013678,2]
[361383886,1747537838162,-607.05059346,0.00013678,2]
[361383888,1747537838171,-607.05059346,0.00013678,2]
[361383890,1747537838180,-607.05059346,0.00013678,2]
[361383892,1747537838190,-607.05059346,0.00013678,2]
[361383894,1747537838200,-607.05059346,0.00013678,2]
[361383896,1747537838209,-607.05059346,0.00013678,2]
[361383897,1747537838219,-607.05059346,0.00013678,2]
[361383898,1747537838229,-607.05059346,0.00013678,2]
[361383899,1747537838239,-607.05059346,0.00013678,2]
[361383900,1747537838248,-607.05059346,0.00013678,2]
[361383901,1747537838258,-607.05059346,0.00013678,2]
[361383902,1747537838266,-607.05059346,0.00013678,2]
[361383903,1747537838275,-184.77815307,0.00013699,2]
[361383904,1747537838284,-178455.33039195,0.00013899,2]
[361383905,1747537838294,-299.99,0.00013899,2]
[361383906,1747537838304,-210.61596264,0.000139,2]
[361383907,1747537838313,-150.99,0.000139,2]
[361383908,1747537838323,-150.99,0.000139,2]
[361383909,1747537838333,-487.7,0.000139,2]
[361383910,1747537838342,-5282.37,0.000139,2]
[361383911,1747537838353,-297.15136218,0.000139,2]
[361383912,1747537838362,-216.7109793,0.000139,2]
[361383913,1747537838371,-5408.759,0.00013918,2]
[361383914,1747537838380,-1920.2565221,0.00013929,2]
[361383915,1747537838389,-164.325,0.00013929,2]
[361383916,1747537838398,-1887.267,0.00013929,2]
[361383917,1747537838411,-159.87839184,0.0001399,2]
[361383918,1747537838420,-151.0,0.00013992,2]
[361383919,1747537838429,-668.65185757,0.00013992,2]
[361383920,1747537838438,-668.65185757,0.00013992,2]
[361383921,1747537838447,-250193.02487081,0.00014,2]
[361383922,1747537838456,-8558.05683704,0.00014,2]
[361383923,1747537838498,-264.4450012,0.00013678,2]
[361383924,1747537838509,-256.94,0.00013678,2]
[361383925,1747537838520,-85.66559226,0.00013678,2]
[361383926,1747537838529,-294.09427308,0.00013678,2]
[361383948,1747537839929,-312.95632038,0.00013678,2]
[361383950,1747537839939,-607.05059346,0.00013678,2]
[361383952,1747537839948,-607.05059346,0.00013678,2]
[361383954,1747537839957,-607.05059346,0.00013678,2]
[361383956,1747537839966,-607.05059346,0.00013678,2]
[361383958,1747537839975,-607.05059346,0.00013678,2]
[361383960,1747537839984,-607.05059346,0.00013678,2]